[Event "*** Titled Tuesday Blitz"]
[Site "Chess.com"]
[Date "2021.02.09"]
[Round "7"]
[White "Taktikmonster"]
[Black "eCztery"]
[Result "1/2-1/2"]
[WhiteElo "2282"]
[BlackElo "2449"]
[TimeControl "180+1"]
[EndTime "11:19:48 PST"]
[Termination "Game drawn - insufficient material"]

1. e4 {[%clk 0:03:00.9]} 1... c5 {[%clk 0:02:55.7]} 2. Nf3 {[%clk 0:03:00.8]}
2... g6 {[%clk 0:02:48.9]} 3. d4 {[%clk 0:03:01]} 3... cxd4 {[%clk 0:02:49.3]}
4. Nxd4 {[%clk 0:03:01.9]} 4... Nc6 {[%clk 0:02:49.4]} 5. Nc3 {[%clk 0:03:01.1]}
5... Bg7 {[%clk 0:02:48.8]} 6. Be3 {[%clk 0:03:01.3]} 6... Nf6 {[%clk
0:02:49.4]} 7. Bc4 {[%clk 0:03:00.9]} 7... O-O {[%clk 0:02:49.9]} 8. Bb3 {[%clk
0:02:59.8]} 8... Ng4 {[%clk 0:02:49.9]} 9. Qxg4 {[%clk 0:02:54.2]} 9... Nxd4
{[%clk 0:02:50.3]} 10. Qd1 {[%clk 0:02:45.5]} 10... Nc6 {[%clk 0:02:49.9]} 11.
O-O {[%clk 0:02:43.5]} 11... d6 {[%clk 0:02:50.7]} 12. f4 {[%clk 0:02:33.1]}
12... Be6 {[%clk 0:02:51.6]} 13. f5 {[%clk 0:02:18.5]} 13... Bxb3 {[%clk
0:02:51]} 14. axb3 {[%clk 0:02:19.4]} 14... a6 {[%clk 0:02:43.5]} 15. Nd5 {[%clk
0:02:01.7]} 15... Bxb2 {[%clk 0:02:25.9]} 16. Rb1 {[%clk 0:02:01.3]} 16... Bg7
{[%clk 0:02:24.6]} 17. Bb6 {[%clk 0:01:57.3]} 17... Qd7 {[%clk 0:02:19.3]} 18.
f6 {[%clk 0:01:52]} 18... exf6 {[%clk 0:02:06.9]} 19. Nxf6+ {[%clk 0:01:52.9]}
19... Bxf6 {[%clk 0:02:06.9]} 20. Rxf6 {[%clk 0:01:53.7]} 20... Qe7 {[%clk
0:02:02]} 21. Rxd6 {[%clk 0:01:42.2]} 21... Qxe4 {[%clk 0:01:56.9]} 22. Rd7
{[%clk 0:01:42.7]} 22... Rae8 {[%clk 0:01:47.2]} 23. Bc5 {[%clk 0:01:19.9]}
23... Ne5 {[%clk 0:01:36]} 24. Rd4 {[%clk 0:01:08.3]} 24... Qe3+ {[%clk
0:01:36]} 25. Kh1 {[%clk 0:00:53]} 25... Ng4 {[%clk 0:01:33.3]} 26. Rxg4 {[%clk
0:00:36.2]} 26... Qxc5 {[%clk 0:01:30]} 27. Rc4 {[%clk 0:00:26.5]} 27... Qf2
{[%clk 0:01:21.7]} 28. Qf1 {[%clk 0:00:18.6]} 28... Qxf1+ {[%clk 0:01:19]} 29.
Rxf1 {[%clk 0:00:19.5]} 29... Rc8 {[%clk 0:01:18.9]} 30. Rxc8 {[%clk 0:00:16]}
30... Rxc8 {[%clk 0:01:18.1]} 31. Rf2 {[%clk 0:00:15.6]} 31... f5 {[%clk
0:01:17.9]} 32. Kg1 {[%clk 0:00:15.7]} 32... Kf7 {[%clk 0:01:18.4]} 33. Kf1
{[%clk 0:00:16.2]} 33... Ke6 {[%clk 0:01:18.5]} 34. Rd2 {[%clk 0:00:16]} 34...
g5 {[%clk 0:01:12.8]} 35. Ke2 {[%clk 0:00:15.9]} 35... h5 {[%clk 0:01:12.8]} 36.
c4 {[%clk 0:00:14.2]} 36... b5 {[%clk 0:01:11.6]} 37. Ra2 {[%clk 0:00:12]} 37...
Rc6 {[%clk 0:01:08.3]} 38. Kd3 {[%clk 0:00:12.2]} 38... bxc4+ {[%clk 0:01:03.5]}
39. bxc4 {[%clk 0:00:13.1]} 39... f4 {[%clk 0:01:04.4]} 40. Re2+ {[%clk
0:00:12.1]} 40... Kf5 {[%clk 0:01:04.5]} 41. Kd4 {[%clk 0:00:12.5]} 41... g4
{[%clk 0:01:03.2]} 42. Kd5 {[%clk 0:00:12.5]} 42... Rc8 {[%clk 0:01:01.9]} 43.
Re5+ {[%clk 0:00:10.2]} 43... Kg6 {[%clk 0:01:01.2]} 44. Re6+ {[%clk 0:00:08]}
44... Kg5 {[%clk 0:01:01.5]} 45. Re5+ {[%clk 0:00:07.4]} 45... Kh4 {[%clk
0:01:00.4]} 46. c5 {[%clk 0:00:05.7]} 46... g3 {[%clk 0:00:56.7]} 47. hxg3+
{[%clk 0:00:02.9]} 47... Kxg3 {[%clk 0:00:56]} 48. Rg5+ {[%clk 0:00:01.4]} 48...
Kf2 {[%clk 0:00:53.7]} 49. c6 {[%clk 0:00:01.6]} 49... h4 {[%clk 0:00:51.7]} 50.
Kd6 {[%clk 0:00:01.8]} 50... a5 {[%clk 0:00:36.1]} 51. Kd7 {[%clk 0:00:01.8]}
51... Rf8 {[%clk 0:00:30.8]} 52. c7 {[%clk 0:00:02.7]} 52... a4 {[%clk 0:00:24]}
53. c8=Q {[%clk 0:00:03.1]} 53... Rxc8 {[%clk 0:00:23.6]} 54. Kxc8 {[%clk
0:00:04]} 54... a3 {[%clk 0:00:22.7]} 55. Rg4 {[%clk 0:00:04.5]} 55... Ke3
{[%clk 0:00:09.8]} 56. Rxh4 {[%clk 0:00:04.4]} 56... a2 {[%clk 0:00:08]} 57. Rh1
{[%clk 0:00:04.7]} 57... Kf2 {[%clk 0:00:08.7]} 58. Ra1 {[%clk 0:00:05.2]} 58...
Kxg2 {[%clk 0:00:09.2]} 59. Rxa2+ {[%clk 0:00:06.1]} 59... Kg3 {[%clk
0:00:09.4]} 60. Kd7 {[%clk 0:00:07]} 60... f3 {[%clk 0:00:10.3]} 61. Ke6 {[%clk
0:00:07.4]} 61... f2 {[%clk 0:00:10.8]} 62. Ra1 {[%clk 0:00:07.5]} 62... Kg2
{[%clk 0:00:11]} 63. Kf5 {[%clk 0:00:07.9]} 63... f1=Q+ {[%clk 0:00:11.9]} 64.
Rxf1 {[%clk 0:00:03.4]} 64... Kxf1 {[%clk 0:00:12.8]} 1/2-1/2

[Event "*** Titled Tuesday Blitz"]
[Site "Chess.com"]
[Date "2021.02.09"]
[Round "7"]
[White "Klavdia_Nik"]
[Black "canary2016"]
[Result "1-0"]
[WhiteElo "2064"]
[BlackElo "1978"]
[TimeControl "180+1"]
[EndTime "11:19:52 PST"]
[Termination "Klavdia_Nik won on time"]

1. Nf3 {[%clk 0:03:00.9]} 1... d5 {[%clk 0:02:59.6]} 2. c4 {[%clk 0:03:01.2]}
2... c6 {[%clk 0:02:59.4]} 3. b3 {[%clk 0:03:01.4]} 3... Nf6 {[%clk 0:02:58.8]}
4. Bb2 {[%clk 0:03:02]} 4... Bf5 {[%clk 0:02:57.2]} 5. g3 {[%clk 0:03:02.2]}
5... e6 {[%clk 0:02:57.3]} 6. Bg2 {[%clk 0:03:02.7]} 6... Be7 {[%clk 0:02:57.7]}
7. O-O {[%clk 0:03:02]} 7... O-O {[%clk 0:02:57.6]} 8. d3 {[%clk 0:03:02.6]}
8... Nbd7 {[%clk 0:02:57.7]} 9. Nbd2 {[%clk 0:03:03.1]} 9... Rc8 {[%clk
0:02:55.8]} 10. Re1 {[%clk 0:03:01.9]} 10... Bg6 {[%clk 0:02:51]} 11. h3 {[%clk
0:02:58.5]} 11... Bd6 {[%clk 0:02:47]} 12. a3 {[%clk 0:02:51.1]} 12... e5 {[%clk
0:02:41.9]} 13. Nh4 {[%clk 0:02:47.5]} 13... e4 {[%clk 0:02:37.8]} 14. Nxg6
{[%clk 0:02:45.8]} 14... hxg6 {[%clk 0:02:37]} 15. dxe4 {[%clk 0:02:46.2]} 15...
dxe4 {[%clk 0:02:31.1]} 16. Nxe4 {[%clk 0:02:45.4]} 16... Nxe4 {[%clk
0:02:30.6]} 17. Bxe4 {[%clk 0:02:44.5]} 17... Nf6 {[%clk 0:02:30.8]} 18. Bg2
{[%clk 0:02:44.1]} 18... Qe7 {[%clk 0:02:29.7]} 19. b4 {[%clk 0:02:34]} 19...
Rcd8 {[%clk 0:02:29.5]} 20. Qc2 {[%clk 0:02:34]} 20... Rfe8 {[%clk 0:02:25]} 21.
Rad1 {[%clk 0:02:26]} 21... Bc7 {[%clk 0:02:07.5]} 22. e4 {[%clk 0:02:16.1]}
22... Be5 {[%clk 0:02:06.5]} 23. Bxe5 {[%clk 0:02:12.2]} 23... Qxe5 {[%clk
0:02:06.3]} 24. f4 {[%clk 0:02:12.7]} 24... Qc7 {[%clk 0:01:44.1]} 25. e5 {[%clk
0:02:11.6]} 25... Nh5 {[%clk 0:01:39.1]} 26. Kh2 {[%clk 0:02:09.9]} 26... Rxd1
{[%clk 0:01:28.7]} 27. Rxd1 {[%clk 0:02:06.8]} 27... g5 {[%clk 0:01:28.5]} 28.
Qf5 {[%clk 0:01:51.4]} 28... Nxg3 {[%clk 0:00:38.1]} 29. Kxg3 {[%clk 0:01:48.8]}
29... gxf4+ {[%clk 0:00:37.3]} 30. Qxf4 {[%clk 0:01:35.8]} 30... Rxe5 {[%clk
0:00:28.4]} 31. Kh2 {[%clk 0:01:31.8]} 31... Qe7 {[%clk 0:00:21.3]} 32. Rd2
{[%clk 0:01:27.3]} 32... g5 {[%clk 0:00:09.6]} 33. Qd4 {[%clk 0:01:16.4]} 33...
Qe6 {[%clk 0:00:03.6]} 34. Rf2 {[%clk 0:01:05.3]} 34... Kg7 {[%clk 0:00:03.5]}
35. Qg4 {[%clk 0:00:58.5]} 35... Kg8 {[%clk 0:00:03.5]} 36. Qxe6 {[%clk
0:00:48.9]} 36... Rxe6 {[%clk 0:00:04.4]} 37. Rf3 {[%clk 0:00:42.9]} 37... Kg7
{[%clk 0:00:04.5]} 38. Kg3 {[%clk 0:00:41]} 38... Re2 {[%clk 0:00:04.6]} 39. Rd3
{[%clk 0:00:40.8]} 39... Rb2 {[%clk 0:00:04.2]} 40. Be4 {[%clk 0:00:34.3]} 40...
Ra2 {[%clk 0:00:05.1]} 41. Kg4 {[%clk 0:00:33]} 41... Ra1 {[%clk 0:00:04.5]} 42.
Kxg5 {[%clk 0:00:31.7]} 42... Rg1+ {[%clk 0:00:04.5]} 43. Kf4 {[%clk 0:00:29.9]}
43... Rf1+ {[%clk 0:00:04.2]} 44. Bf3 {[%clk 0:00:29.3]} 44... Rb1 {[%clk
0:00:02.9]} 45. Bg4 {[%clk 0:00:27.5]} 45... Rb2 {[%clk 0:00:02.6]} 46. Ke5
{[%clk 0:00:26.7]} 46... Ra2 {[%clk 0:00:02.6]} 47. Kd6 {[%clk 0:00:26.5]} 47...
Rb2 {[%clk 0:00:02.5]} 48. Kc7 {[%clk 0:00:25.5]} 48... b5 {[%clk 0:00:03.4]}
49. cxb5 {[%clk 0:00:24.2]} 49... cxb5 {[%clk 0:00:03.5]} 50. Kc6 {[%clk
0:00:24.5]} 50... a5 {[%clk 0:00:03.4]} 51. Kxb5 {[%clk 0:00:23.7]} 51... axb4
{[%clk 0:00:03.2]} 52. axb4 {[%clk 0:00:23.8]} 52... Rb1 {[%clk 0:00:03.3]} 53.
Rf3 {[%clk 0:00:20.4]} 53... f6 {[%clk 0:00:02.8]} 54. Kc5 {[%clk 0:00:19.3]}
54... Rb2 {[%clk 0:00:02.5]} 55. b5 {[%clk 0:00:18.5]} 55... Rb1 {[%clk
0:00:02.4]} 56. b6 {[%clk 0:00:16.8]} 56... Rb2 {[%clk 0:00:02.4]} 57. Kc6
{[%clk 0:00:16.1]} 57... Rb1 {[%clk 0:00:02.6]} 58. Kb7 {[%clk 0:00:15.2]} 58...
Rb4 {[%clk 0:00:02.8]} 59. Kc7 {[%clk 0:00:14.7]} 59... Kg6 {[%clk 0:00:03.3]}
60. b7 {[%clk 0:00:13.7]} 60... Kg5 {[%clk 0:00:03.5]} 61. b8=Q {[%clk 0:00:12]}
61... Rc4+ {[%clk 0:00:03.3]} 62. Kd6 {[%clk 0:00:12]} 62... Rd4+ {[%clk
0:00:03.5]} 63. Kc5 {[%clk 0:00:10.7]} 63... Rd5+ {[%clk 0:00:02.3]} 64. Kxd5
{[%clk 0:00:09.8]} 64... f5 {[%clk 0:00:03.2]} 65. Qg8+ {[%clk 0:00:09]} 65...
Kh4 {[%clk 0:00:02.8]} 66. Qh7+ {[%clk 0:00:08.2]} 1-0

[Event "*** Titled Tuesday Blitz"]
[Site "Chess.com"]
[Date "2021.02.09"]
[Round "7"]
[White "tylityli"]
[Black "Orest_Vovk"]
[Result "0-1"]
[WhiteElo "2282"]
[BlackElo "2414"]
[TimeControl "180+1"]
[EndTime "11:19:54 PST"]
[Termination "Orest_Vovk won on time"]

1. d4 {[%clk 0:02:56.4]} 1... d5 {[%clk 0:02:59.3]} 2. c4 {[%clk 0:02:55.6]}
2... e5 {[%clk 0:02:59.2]} 3. dxe5 {[%clk 0:02:54.9]} 3... d4 {[%clk 0:02:59.2]}
4. Nf3 {[%clk 0:02:54.6]} 4... Nc6 {[%clk 0:02:57.4]} 5. a3 {[%clk 0:02:54.6]}
5... Nge7 {[%clk 0:02:54.7]} 6. e3 {[%clk 0:02:53.5]} 6... Nf5 {[%clk
0:02:51.4]} 7. e4 {[%clk 0:02:45.2]} 7... Nh4 {[%clk 0:02:47.6]} 8. Bf4 {[%clk
0:02:43.9]} 8... Nxf3+ {[%clk 0:02:40.8]} 9. Qxf3 {[%clk 0:02:41.9]} 9... Be6
{[%clk 0:02:41]} 10. Bd3 {[%clk 0:02:40.5]} 10... a5 {[%clk 0:02:39.4]} 11. Nd2
{[%clk 0:02:37.8]} 11... Bc5 {[%clk 0:02:39.3]} 12. O-O {[%clk 0:02:35.8]} 12...
O-O {[%clk 0:02:38.3]} 13. Bg3 {[%clk 0:02:23.2]} 13... Qg5 {[%clk 0:02:30.8]}
14. h4 {[%clk 0:02:18.5]} 14... Qxd2 {[%clk 0:02:24.5]} 15. Bf4 {[%clk
0:02:11.7]} 15... Qxb2 {[%clk 0:02:21.9]} 16. Rab1 {[%clk 0:01:52.8]} 16... Qxa3
{[%clk 0:02:15]} 17. Ra1 {[%clk 0:01:52.6]} 17... Qxd3 {[%clk 0:02:05.9]} 18.
Qxd3 {[%clk 0:01:50.5]} 18... Nb4 {[%clk 0:02:06.8]} 19. Qg3 {[%clk 0:01:48.8]}
19... Bxc4 {[%clk 0:01:54.9]} 20. Rfc1 {[%clk 0:01:42.9]} 20... b5 {[%clk
0:01:54.1]} 21. Bh6 {[%clk 0:01:42.6]} 21... g6 {[%clk 0:01:54]} 22. e6 {[%clk
0:01:35.1]} 22... Bb6 {[%clk 0:01:08.9]} 23. Bxf8 {[%clk 0:01:19.5]} 23... Kxf8
{[%clk 0:01:00.4]} 24. exf7 {[%clk 0:01:17.8]} 24... Bxf7 {[%clk 0:00:45.2]} 25.
Qe5 {[%clk 0:01:06.7]} 25... Kg8 {[%clk 0:00:32.1]} 26. Qxb5 {[%clk 0:01:04.9]}
26... d3 {[%clk 0:00:26.9]} 27. Rd1 {[%clk 0:00:52.4]} 27... Rd8 {[%clk
0:00:26]} 28. Rab1 {[%clk 0:00:43.1]} 28... Ba2 {[%clk 0:00:13]} 29. Rb2 {[%clk
0:00:38.6]} 29... Be6 {[%clk 0:00:11]} 30. Qe5 {[%clk 0:00:27.1]} 30... Bf7
{[%clk 0:00:09.1]} 31. Rbd2 {[%clk 0:00:19.5]} 31... Bd4 {[%clk 0:00:06.7]} 32.
Qxc7 {[%clk 0:00:18.2]} 32... Re8 {[%clk 0:00:05.5]} 33. Qxa5 {[%clk 0:00:14.2]}
33... Bc3 {[%clk 0:00:05]} 34. Rxd3 {[%clk 0:00:12.2]} 34... Nxd3 {[%clk
0:00:05]} 35. Qxc3 {[%clk 0:00:12.2]} 35... Nf4 {[%clk 0:00:04.7]} 36. Qf6
{[%clk 0:00:10.3]} 36... Ne6 {[%clk 0:00:03]} 37. e5 {[%clk 0:00:09.2]} 37...
Rf8 {[%clk 0:00:02.7]} 38. Qe7 {[%clk 0:00:07.7]} 38... Ng7 {[%clk 0:00:02.6]}
39. Rd7 {[%clk 0:00:06.5]} 39... Nf5 {[%clk 0:00:02.5]} 40. Qg5 {[%clk
0:00:05.8]} 40... Ng7 {[%clk 0:00:02.6]} 41. Qg3 {[%clk 0:00:04.5]} 41... Nf5
{[%clk 0:00:02.5]} 42. Qc3 {[%clk 0:00:04.4]} 42... Be6 {[%clk 0:00:02.1]} 43.
Rd6 {[%clk 0:00:03.8]} 43... Rc8 {[%clk 0:00:02]} 44. Qd3 {[%clk 0:00:02.6]}
44... Kf7 {[%clk 0:00:02.4]} 45. Rd8 {[%clk 0:00:02.5]} 45... Rc1+ {[%clk
0:00:01.6]} 46. Kh2 {[%clk 0:00:02.1]} 46... Ne7 {[%clk 0:00:02.5]} 47. Rd7
{[%clk 0:00:02.2]} 47... Rc4 {[%clk 0:00:02.2]} 48. Rxe7+ {[%clk 0:00:02.2]}
48... Kxe7 {[%clk 0:00:01.9]} 49. Qf3 {[%clk 0:00:02.9]} 49... Rxh4+ {[%clk
0:00:01.4]} 50. Kg3 {[%clk 0:00:02.4]} 50... Rh5 {[%clk 0:00:02.3]} 51. Qf6+
{[%clk 0:00:02.2]} 51... Kd7 {[%clk 0:00:03.2]} 52. Kf3 {[%clk 0:00:02.5]} 52...
Rf5+ {[%clk 0:00:02.7]} 53. Qxf5 {[%clk 0:00:02.8]} 53... Bxf5 {[%clk
0:00:03.6]} 54. g4 {[%clk 0:00:03.4]} 54... Be6 {[%clk 0:00:04.2]} 55. Kf4
{[%clk 0:00:04.3]} 55... Ke7 {[%clk 0:00:04.9]} 56. Kg5 {[%clk 0:00:04.6]} 56...
Kf7 {[%clk 0:00:05.8]} 57. f4 {[%clk 0:00:04.8]} 57... Kg8 {[%clk 0:00:06.7]}
58. f5 {[%clk 0:00:05.2]} 58... Bf7 {[%clk 0:00:07]} 59. e6 {[%clk 0:00:05]}
59... Be8 {[%clk 0:00:06.7]} 60. Kf6 {[%clk 0:00:05.3]} 60... Kf8 {[%clk
0:00:06.9]} 61. e7+ {[%clk 0:00:05]} 61... Kg8 {[%clk 0:00:06.9]} 62. Kg5 {[%clk
0:00:04.3]} 62... Kg7 {[%clk 0:00:06.8]} 63. f6+ {[%clk 0:00:04.4]} 63... Kf7
{[%clk 0:00:07.2]} 64. Kh6 {[%clk 0:00:03.7]} 64... Kxf6 {[%clk 0:00:07.5]} 65.
Kxh7 {[%clk 0:00:04]} 65... Kxe7 {[%clk 0:00:07.7]} 66. Kh6 {[%clk 0:00:03.7]}
66... Kf6 {[%clk 0:00:07.8]} 0-1

[Event "*** Titled Tuesday Blitz"]
[Site "Chess.com"]
[Date "2021.02.09"]
[Round "7"]
[White "dropstoneDP"]
[Black "Rsnr"]
[Result "0-1"]
[WhiteElo "2956"]
[BlackElo "2776"]
[TimeControl "180+1"]
[EndTime "11:19:58 PST"]
[Termination "Rsnr won by resignation"]

1. e4 {[%clk 0:03:00.9]} 1... c6 {[%clk 0:02:59.2]} 2. d4 {[%clk 0:03:01.2]}
2... d5 {[%clk 0:03:00.1]} 3. e5 {[%clk 0:03:01.8]} 3... Bf5 {[%clk 0:02:59.7]}
4. Bd3 {[%clk 0:03:01.9]} 4... Bxd3 {[%clk 0:02:58.3]} 5. Qxd3 {[%clk
0:03:02.8]} 5... e6 {[%clk 0:02:58]} 6. Ne2 {[%clk 0:03:02.3]} 6... c5 {[%clk
0:02:18.7]} 7. c3 {[%clk 0:03:02.3]} 7... Nc6 {[%clk 0:02:18.7]} 8. Nd2 {[%clk
0:03:01.5]} 8... Nge7 {[%clk 0:02:18.1]} 9. Nf3 {[%clk 0:03:01]} 9... Nf5 {[%clk
0:02:17.2]} 10. O-O {[%clk 0:03:00.9]} 10... Be7 {[%clk 0:02:06]} 11. g4 {[%clk
0:03:00.2]} 11... Nh6 {[%clk 0:02:06.5]} 12. h3 {[%clk 0:02:56.7]} 12... Ng8
{[%clk 0:02:06.8]} 13. Ng3 {[%clk 0:02:55.7]} 13... Qb6 {[%clk 0:02:07]} 14.
dxc5 {[%clk 0:02:44.5]} 14... Bxc5 {[%clk 0:02:07.9]} 15. a4 {[%clk 0:02:24.5]}
15... Qa6 {[%clk 0:01:58.9]} 16. Qd1 {[%clk 0:02:16.7]} 16... Bb6 {[%clk
0:01:46.9]} 17. b3 {[%clk 0:01:12.8]} 17... Bc7 {[%clk 0:01:41.1]} 18. Re1
{[%clk 0:01:06.6]} 18... Nge7 {[%clk 0:01:40.1]} 19. Nh5 {[%clk 0:00:26.9]}
19... O-O {[%clk 0:01:33.1]} 20. Ba3 {[%clk 0:00:24.8]} 20... Rfe8 {[%clk
0:01:23.6]} 21. Nf4 {[%clk 0:00:17.3]} 21... Ng6 {[%clk 0:01:11.8]} 22. Nxg6
{[%clk 0:00:17.4]} 22... hxg6 {[%clk 0:01:12.7]} 23. Kg2 {[%clk 0:00:17.5]}
23... b5 {[%clk 0:01:08.7]} 24. Bc5 {[%clk 0:00:14.2]} 24... bxa4 {[%clk
0:00:58.9]} 25. Rxa4 {[%clk 0:00:15.1]} 25... Qb7 {[%clk 0:00:59.7]} 26. Bd4
{[%clk 0:00:13.9]} 26... a5 {[%clk 0:00:59.9]} 27. Qc2 {[%clk 0:00:12.3]} 27...
Rab8 {[%clk 0:01:00.1]} 28. Ra3 {[%clk 0:00:11.4]} 28... Bb6 {[%clk 0:00:55.4]}
29. Qd2 {[%clk 0:00:09.8]} 29... Rec8 {[%clk 0:00:55.1]} 30. Rea1 {[%clk
0:00:09.6]} 30... Qc7 {[%clk 0:00:39.7]} 31. Qe3 {[%clk 0:00:08.1]} 31... Nxd4
{[%clk 0:00:38.2]} 32. cxd4 {[%clk 0:00:07.1]} 32... Qc3 {[%clk 0:00:38.5]} 33.
R1a2 {[%clk 0:00:05.6]} 33... Qxe3 {[%clk 0:00:25.5]} 34. fxe3 {[%clk
0:00:06.5]} 34... Rc3 {[%clk 0:00:26.2]} 35. Kf2 {[%clk 0:00:07]} 35... Bd8
{[%clk 0:00:25.5]} 36. Nd2 {[%clk 0:00:06.5]} 36... Bg5 {[%clk 0:00:20.6]} 37.
Nf1 {[%clk 0:00:06.7]} 37... Rbxb3 {[%clk 0:00:20.7]} 38. Rxb3 {[%clk
0:00:07.6]} 38... Rxb3 {[%clk 0:00:21.4]} 39. Rxa5 {[%clk 0:00:08.3]} 39... Bh4+
{[%clk 0:00:15]} 40. Ke2 {[%clk 0:00:07]} 40... Rb2+ {[%clk 0:00:15.5]} 41. Nd2
{[%clk 0:00:07.3]} 41... f6 {[%clk 0:00:13.6]} 42. Ra8+ {[%clk 0:00:07.7]} 42...
Kf7 {[%clk 0:00:12.9]} 43. Ra7+ {[%clk 0:00:08.2]} 43... Kf8 {[%clk 0:00:13.6]}
44. Ra6 {[%clk 0:00:08.2]} 44... Kf7 {[%clk 0:00:13.9]} 45. Ra7+ {[%clk
0:00:08.4]} 45... Kf8 {[%clk 0:00:14.5]} 46. Kd3 {[%clk 0:00:07.5]} 46... Bg3
{[%clk 0:00:08.7]} 47. Ra8+ {[%clk 0:00:05.7]} 47... Kf7 {[%clk 0:00:08.9]} 48.
Ra7+ {[%clk 0:00:06.3]} 48... Kf8 {[%clk 0:00:09.5]} 49. exf6 {[%clk 0:00:04.7]}
49... gxf6 {[%clk 0:00:09.7]} 50. Ra8+ {[%clk 0:00:05.2]} 50... Kf7 {[%clk
0:00:10]} 51. Ra7+ {[%clk 0:00:05.8]} 51... Kf8 {[%clk 0:00:10.7]} 52. e4 {[%clk
0:00:06.3]} 52... Be1 {[%clk 0:00:06.2]} 53. Nf3 {[%clk 0:00:05.9]} 53... dxe4+
{[%clk 0:00:06.5]} 54. Kxe4 {[%clk 0:00:06.6]} 54... Bg3 {[%clk 0:00:04.6]} 55.
Ra8+ {[%clk 0:00:05]} 55... Kf7 {[%clk 0:00:04.8]} 56. Ra7+ {[%clk 0:00:05.6]}
56... Kf8 {[%clk 0:00:05.5]} 57. h4 {[%clk 0:00:03]} 57... Re2+ {[%clk
0:00:05.8]} 58. Kd3 {[%clk 0:00:03.3]} 58... Rf2 {[%clk 0:00:06.7]} 59. Ke3
{[%clk 0:00:03.5]} 59... Rb2 {[%clk 0:00:06.9]} 60. Ra8+ {[%clk 0:00:04]} 60...
Kf7 {[%clk 0:00:07.3]} 61. Ra7+ {[%clk 0:00:04.5]} 61... Kf8 {[%clk 0:00:07.9]}
62. g5 {[%clk 0:00:03.8]} 62... fxg5 {[%clk 0:00:04.5]} 63. Nxg5 {[%clk
0:00:04.7]} 63... Bxh4 {[%clk 0:00:04.4]} 64. Nxe6+ {[%clk 0:00:04.7]} 64... Ke8
{[%clk 0:00:04.8]} 65. d5 {[%clk 0:00:05.2]} 65... Bf2+ {[%clk 0:00:02.9]} 66.
Ke4 {[%clk 0:00:05.5]} 66... Bxa7 {[%clk 0:00:03.8]} 67. Nf4 {[%clk 0:00:04.7]}
67... Rb4+ {[%clk 0:00:03.7]} 68. Ke5 {[%clk 0:00:05]} 68... Bb8+ {[%clk
0:00:03.5]} 69. d6 {[%clk 0:00:05.5]} 69... Bxd6+ {[%clk 0:00:03.8]} 70. Kxd6
{[%clk 0:00:06.4]} 70... Rxf4 {[%clk 0:00:04.2]} 0-1